[Event "Titled Tuesday Blitz May 24 Early 2022"]
[White "Fernandez Hernandez, Gerardo"]
[Black "Soumya, Swaminathan"]
[WhiteFideId "2207400"]
[BlackFideId "5016193"]
[WhiteElo "2213"]
[BlackElo "2115"]
[Result "1-0"]
[Round "11"]
[TimeControl "180+1"]
[Date "2022.05.25"]
[WhiteClock "0:00:32"]
[BlackClock "0:00:06"]

1. e4 {[%clk 0:03:00]}  c5 {[%clk 0:02:59]} 2. d3 {[%clk 0:03:00]}  Nc6 {[%clk 0:02:58]} 3. g3 {[%clk 0:03:01]}  g6 {[%clk 0:02:58]} 4. Bg2 {[%clk 0:03:01]}  Bg7 {[%clk 0:02:59]} 5. f4 {[%clk 0:03:02]}  d6 {[%clk 0:02:57]} 6. Nf3 {[%clk 0:03:03]}  e6 {[%clk 0:02:56]} 7. O-O {[%clk 0:03:03]}  Nge7 {[%clk 0:02:56]} 8. c3 {[%clk 0:03:04]}  O-O {[%clk 0:02:44]} 9. Be3 {[%clk 0:03:04]}  f5 {[%clk 0:02:36]} 10. Nbd2 {[%clk 0:02:54]}  b6 {[%clk 0:02:26]} 11. Bf2 {[%clk 0:02:41]}  Ba6 {[%clk 0:02:22]} 12. exf5 {[%clk 0:02:40]}  Bxd3 {[%clk 0:02:10]} 13. fxg6 {[%clk 0:02:37]}  Bxf1 {[%clk 0:02:07]} 14. gxh7+ {[%clk 0:02:36]}  Kh8 {[%clk 0:02:06]} 15. Qxf1 {[%clk 0:02:15]}  d5 {[%clk 0:01:45]} 16. Ng5 {[%clk 0:02:05]}  Rf6 {[%clk 0:01:40]} 17. Re1 {[%clk 0:01:53]}  Qd6 {[%clk 0:01:29]} 18. Rxe6 {[%clk 0:01:46]}  Qd7 {[%clk 0:01:13]} 19. Bh3 {[%clk 0:01:14]}  Qe8 {[%clk 0:01:03]} 20. Qe2 {[%clk 0:01:02]}  Rf8 {[%clk 0:00:29]} 21. Bg4 {[%clk 0:00:49]}  Rd8 {[%clk 0:00:21]} 22. Bh5 {[%clk 0:00:46]}  Qd7 {[%clk 0:00:18]} 23. Nf7+ {[%clk 0:00:44]}  Rxf7 {[%clk 0:00:18]} 24. Bxf7 {[%clk 0:00:45]}  Nf5 {[%clk 0:00:15]} 25. Re8+ {[%clk 0:00:33]}  Kxh7 {[%clk 0:00:06]} 26. Qh5+ {[%clk 0:00:32]} 1-0


[Site "https://www.chess.com"]

[Event "Titled Tuesday Blitz May 24 Early 2022"]
[White "Ferreira, Vitor Hugo Vieira"]
[Black "Shuvalova, Polina"]
[WhiteFideId "2119765"]
[BlackFideId "24171760"]
[WhiteElo "2165"]
[BlackElo "2355"]
[Result "0-1"]
[Round "11"]
[TimeControl "180+1"]
[Date "2022.05.25"]
[WhiteClock "0:00:53"]
[BlackClock "0:01:04"]

1. e4 {[%clk 0:02:58]}  c5 {[%clk 0:02:59]} 2. Nf3 {[%clk 0:02:58]}  d6 {[%clk 0:03:00]} 3. d4 {[%clk 0:02:58]}  cxd4 {[%clk 0:03:01]} 4. Nxd4 {[%clk 0:02:58]}  Nf6 {[%clk 0:03:01]} 5. Nc3 {[%clk 0:02:58]}  a6 {[%clk 0:03:02]} 6. h3 {[%clk 0:02:59]}  e5 {[%clk 0:03:02]} 7. Nb3 {[%clk 0:02:59]}  h5 {[%clk 0:03:02]} 8. Be3 {[%clk 0:03:00]}  Be6 {[%clk 0:03:01]} 9. Qf3 {[%clk 0:03:00]}  Nbd7 {[%clk 0:03:02]} 10. O-O-O {[%clk 0:03:00]}  Rc8 {[%clk 0:02:58]} 11. Nd5 {[%clk 0:03:00]}  Bxd5 {[%clk 0:02:56]} 12. exd5 {[%clk 0:03:01]}  g6 {[%clk 0:02:56]} 13. Kb1 {[%clk 0:03:01]}  Bg7 {[%clk 0:02:56]} 14. g4 {[%clk 0:02:47]}  e4 {[%clk 0:02:43]} 15. Qg2 {[%clk 0:02:42]}  hxg4 {[%clk 0:02:27]} 16. hxg4 {[%clk 0:02:42]}  Rxh1 {[%clk 0:02:27]} 17. Qxh1 {[%clk 0:02:43]}  Qe7 {[%clk 0:02:19]} 18. g5 {[%clk 0:02:40]}  Ng4 {[%clk 0:02:17]} 19. Qh7 {[%clk 0:02:32]}  Nxe3 {[%clk 0:02:13]} 20. fxe3 {[%clk 0:02:28]}  Qe5 {[%clk 0:02:02]} 21. Nd4 {[%clk 0:02:26]}  Nf8 {[%clk 0:02:02]} 22. Qh3 {[%clk 0:02:24]}  Rc5 {[%clk 0:02:00]} 23. c4 {[%clk 0:02:18]}  Qxg5 {[%clk 0:01:57]} 24. Nb3 {[%clk 0:02:14]}  Qe5 {[%clk 0:01:52]} 25. Rd2 {[%clk 0:02:10]}  Rc7 {[%clk 0:01:50]} 26. c5 {[%clk 0:02:10]}  dxc5 {[%clk 0:01:47]} 27. d6 {[%clk 0:02:11]}  Rd7 {[%clk 0:01:47]} 28. Qg2 {[%clk 0:01:53]}  b5 {[%clk 0:01:37]} 29. a4 {[%clk 0:01:44]}  c4 {[%clk 0:01:33]} 30. Na5 {[%clk 0:01:41]}  f5 {[%clk 0:01:23]} 31. axb5 {[%clk 0:01:39]}  axb5 {[%clk 0:01:23]} 32. Nc6 {[%clk 0:01:34]}  Qc5 {[%clk 0:01:22]} 33. Nd4 {[%clk 0:01:23]}  Rxd6 {[%clk 0:01:21]} 34. Qg3 {[%clk 0:01:15]}  Bxd4 {[%clk 0:01:13]} 35. exd4 {[%clk 0:01:15]}  Rxd4 {[%clk 0:01:09]} 36. Qb8+ {[%clk 0:01:15]}  Kf7 {[%clk 0:01:07]} 37. Qb7+ {[%clk 0:01:06]}  Kg8 {[%clk 0:01:05]} 38. Rf2 {[%clk 0:00:54]}  Rd1+ {[%clk 0:01:04]} 39. Kc2 {[%clk 0:00:54]}  Qxf2+ {[%clk 0:01:03]} 40. Kxd1 {[%clk 0:00:54]}  Qxf1+ {[%clk 0:01:04]} 41. Kc2 {[%clk 0:00:55]}  Qd3+ {[%clk 0:01:04]} 42. Kc1 {[%clk 0:00:55]}  c3 {[%clk 0:01:04]} 43. bxc3 {[%clk 0:00:52]}  Qxc3+ {[%clk 0:01:05]} 44. Kb1 {[%clk 0:00:53]}  Qb3+ {[%clk 0:01:05]} 45. Ka1 {[%clk 0:00:53]}  b4 {[%clk 0:01:05]} 46. Qd5+ {[%clk 0:00:53]}  Qxd5 {[%clk 0:01:04]} 0-1


[Site "https://www.chess.com"]

[Event "Titled Tuesday Blitz May 24 Early 2022"]
[White "Garv Gaur"]
[Black "Zavgorodniy, Sergiy"]
[WhiteFideId "45030839"]
[BlackFideId "14110148"]
[WhiteElo "1950"]
[BlackElo "2420"]
[Result "1-0"]
[Round "11"]
[TimeControl "180+1"]
[Date "2022.05.25"]
[WhiteClock "0:01:19"]
[BlackClock "0:00:48"]

1. d4 {[%clk 0:03:00]}  Nf6 {[%clk 0:02:59]} 2. Nf3 {[%clk 0:03:00]}  e6 {[%clk 0:02:57]} 3. c4 {[%clk 0:03:00]}  Bb4+ {[%clk 0:02:56]} 4. Bd2 {[%clk 0:02:57]}  Qe7 {[%clk 0:02:56]} 5. g3 {[%clk 0:02:56]}  Nc6 {[%clk 0:02:55]} 6. Bg2 {[%clk 0:02:56]}  Bxd2+ {[%clk 0:02:54]} 7. Nbxd2 {[%clk 0:02:54]}  d6 {[%clk 0:02:54]} 8. O-O {[%clk 0:02:50]}  e5 {[%clk 0:02:54]} 9. d5 {[%clk 0:02:50]}  Nb8 {[%clk 0:02:52]} 10. Nb1 {[%clk 0:02:48]}  O-O {[%clk 0:02:51]} 11. Nc3 {[%clk 0:02:42]}  a5 {[%clk 0:02:39]} 12. a3 {[%clk 0:02:32]}  Bg4 {[%clk 0:02:31]} 13. b4 {[%clk 0:02:30]}  Bxf3 {[%clk 0:02:30]} 14. exf3 {[%clk 0:02:20]}  Na6 {[%clk 0:02:04]} 15. Qb3 {[%clk 0:02:18]}  g6 {[%clk 0:01:57]} 16. Rfe1 {[%clk 0:02:17]}  Rfe8 {[%clk 0:01:55]} 17. f4 {[%clk 0:02:15]}  e4 {[%clk 0:01:41]} 18. Nxe4 {[%clk 0:02:11]}  Nxe4 {[%clk 0:01:39]} 19. Rxe4 {[%clk 0:02:08]}  Qf6 {[%clk 0:01:37]} 20. Rae1 {[%clk 0:02:00]}  Rxe4 {[%clk 0:01:36]} 21. Bxe4 {[%clk 0:01:59]}  Re8 {[%clk 0:01:33]} 22. Re3 {[%clk 0:01:24]}  Qa1+ {[%clk 0:01:06]} 23. Kg2 {[%clk 0:01:24]}  a4 {[%clk 0:00:49]} 24. Qxa4 {[%clk 0:01:20]}  Qd4 {[%clk 0:00:48]} 25. Qxe8+ {[%clk 0:01:19]} 1-0


[Site "https://www.chess.com"]

[Event "Titled Tuesday Blitz May 24 Early 2022"]
[White "Gulevich, Artem"]
[Black "Golubev, Mikhail"]
[WhiteFideId "24119580"]
[BlackFideId "14100983"]
[WhiteElo "2218"]
[BlackElo "2374"]
[Result "0-1"]
[Round "11"]
[TimeControl "180+1"]
[Date "2022.05.25"]
[WhiteClock "0:00:16"]
[BlackClock "0:00:19"]

1. Nf3 {[%clk 0:02:59]}  d6 {[%clk 0:02:59]} 2. d4 {[%clk 0:02:59]}  Nf6 {[%clk 0:02:58]} 3. b3 {[%clk 0:02:57]}  g6 {[%clk 0:02:56]} 4. Bb2 {[%clk 0:02:57]}  Bg7 {[%clk 0:02:56]} 5. e3 {[%clk 0:02:58]}  O-O {[%clk 0:02:56]} 6. Be2 {[%clk 0:02:58]}  a5 {[%clk 0:02:55]} 7. a3 {[%clk 0:02:58]}  b6 {[%clk 0:02:49]} 8. O-O {[%clk 0:02:57]}  Bb7 {[%clk 0:02:49]} 9. Nbd2 {[%clk 0:02:58]}  Nbd7 {[%clk 0:02:49]} 10. c4 {[%clk 0:02:58]}  Re8 {[%clk 0:02:47]} 11. Qc2 {[%clk 0:02:58]}  e5 {[%clk 0:02:46]} 12. dxe5 {[%clk 0:02:58]}  dxe5 {[%clk 0:02:43]} 13. Rfd1 {[%clk 0:02:58]}  e4 {[%clk 0:02:42]} 14. Nd4 {[%clk 0:02:53]}  Qe7 {[%clk 0:02:38]} 15. Bc3 {[%clk 0:02:53]}  Ne5 {[%clk 0:02:32]} 16. b4 {[%clk 0:02:47]}  axb4 {[%clk 0:02:31]} 17. axb4 {[%clk 0:02:48]}  c5 {[%clk 0:01:58]} 18. bxc5 {[%clk 0:02:44]}  bxc5 {[%clk 0:01:58]} 19. Nb5 {[%clk 0:02:38]}  Red8 {[%clk 0:01:37]} 20. Nb3 {[%clk 0:00:33]}  Rxa1 {[%clk 0:01:33]} 21. Rxa1 {[%clk 0:00:33]}  Nf3+ {[%clk 0:01:20]} 22. gxf3 {[%clk 0:00:29]}  exf3 {[%clk 0:01:19]} 23. Bf1 {[%clk 0:00:29]}  Ne4 {[%clk 0:01:05]} 24. Bxg7 {[%clk 0:00:26]}  Qg5+ {[%clk 0:00:49]} 25. Kh1 {[%clk 0:00:26]}  Kxg7 {[%clk 0:00:48]} 26. Nc3 {[%clk 0:00:17]}  Nf6 {[%clk 0:00:28]} 27. Rd1 {[%clk 0:00:15]}  Rxd1 {[%clk 0:00:25]} 28. Qxd1 {[%clk 0:00:16]}  Ng4 {[%clk 0:00:24]} 29. Qd2 {[%clk 0:00:15]}  Qh4 {[%clk 0:00:22]} 30. h3 {[%clk 0:00:16]}  Nxf2+ {[%clk 0:00:21]} 31. Kg1 {[%clk 0:00:16]}  Qg3+ {[%clk 0:00:19]} 0-1


[Site "https://www.chess.com"]

[Event "Titled Tuesday Blitz May 24 Early 2022"]
[White "Ibrahimli, Murad"]
[Black "Keymer, Vincent"]
[WhiteFideId "13410229"]
[BlackFideId "12940690"]
[WhiteElo "2109"]
[BlackElo "2548"]
[Result "1/2-1/2"]
[Round "11"]
[TimeControl "180+1"]
[Date "2022.05.24"]
[WhiteClock "0:00:16"]
[BlackClock "0:00:10"]

1. Nf3 {[%clk 0:03:00]}  d5 {[%clk 0:03:00]} 2. d4 {[%clk 0:03:00]}  Nf6 {[%clk 0:02:59]} 3. c4 {[%clk 0:03:00]}  e6 {[%clk 0:03:00]} 4. Nc3 {[%clk 0:02:59]}  c5 {[%clk 0:02:57]} 5. cxd5 {[%clk 0:02:59]}  Nxd5 {[%clk 0:02:58]} 6. e4 {[%clk 0:02:58]}  Nxc3 {[%clk 0:02:58]} 7. bxc3 {[%clk 0:02:59]}  cxd4 {[%clk 0:02:59]} 8. cxd4 {[%clk 0:03:00]}  Bb4+ {[%clk 0:03:00]} 9. Bd2 {[%clk 0:03:00]}  Bxd2+ {[%clk 0:03:01]} 10. Qxd2 {[%clk 0:03:01]}  O-O {[%clk 0:03:01]} 11. Bc4 {[%clk 0:03:01]}  Nd7 {[%clk 0:03:02]} 12. O-O {[%clk 0:03:00]}  b6 {[%clk 0:03:02]} 13. Rad1 {[%clk 0:02:53]}  Bb7 {[%clk 0:03:02]} 14. Rfe1 {[%clk 0:02:53]}  Rc8 {[%clk 0:03:02]} 15. Bb3 {[%clk 0:02:50]}  h6 {[%clk 0:03:03]} 16. Re3 {[%clk 0:02:47]}  Nf6 {[%clk 0:03:02]} 17. Qe1 {[%clk 0:02:47]}  Re8 {[%clk 0:02:55]} 18. h3 {[%clk 0:02:44]}  Qc7 {[%clk 0:02:51]} 19. d5 {[%clk 0:02:39]}  exd5 {[%clk 0:02:52]} 20. e5 {[%clk 0:02:39]}  Nd7 {[%clk 0:02:52]} 21. Ba4 {[%clk 0:02:33]}  Bc6 {[%clk 0:02:52]} 22. Bxc6 {[%clk 0:02:24]}  Qxc6 {[%clk 0:02:53]} 23. Nd4 {[%clk 0:02:25]}  Qa4 {[%clk 0:02:41]} 24. Nf5 {[%clk 0:02:08]}  Rc6 {[%clk 0:02:07]} 25. Rxd5 {[%clk 0:02:05]}  Nf8 {[%clk 0:02:00]} 26. a3 {[%clk 0:01:51]}  Ng6 {[%clk 0:01:51]} 27. Rd4 {[%clk 0:01:22]}  Qc2 {[%clk 0:01:45]} 28. Nd6 {[%clk 0:01:20]}  Re6 {[%clk 0:01:26]} 29. f4 {[%clk 0:01:13]}  Qb2 {[%clk 0:01:22]} 30. Rd2 {[%clk 0:00:58]}  Qc1 {[%clk 0:01:06]} 31. g3 {[%clk 0:00:44]}  Nf8 {[%clk 0:00:30]} 32. Qxc1 {[%clk 0:00:43]}  Rxc1+ {[%clk 0:00:29]} 33. Kf2 {[%clk 0:00:43]}  f6 {[%clk 0:00:20]} 34. g4 {[%clk 0:00:17]}  fxe5 {[%clk 0:00:18]} 35. f5 {[%clk 0:00:17]}  Re7 {[%clk 0:00:18]} 36. Ne4 {[%clk 0:00:17]}  Nd7 {[%clk 0:00:15]} 37. Red3 {[%clk 0:00:15]}  Nc5 {[%clk 0:00:10]} 38. Rd8+ {[%clk 0:00:15]}  Kh7 {[%clk 0:00:07]} 39. Nxc5 {[%clk 0:00:11]}  Rxc5 {[%clk 0:00:08]} 40. R2d7 {[%clk 0:00:11]}  Rc7 {[%clk 0:00:05]} 41. Rxe7 {[%clk 0:00:11]}  Rxe7 {[%clk 0:00:05]} 42. Ke3 {[%clk 0:00:12]}  e4 {[%clk 0:00:04]} 43. Rd4 {[%clk 0:00:10]}  Kg8 {[%clk 0:00:04]} 44. Rd6 {[%clk 0:00:07]}  Kf7 {[%clk 0:00:04]} 45. h4 {[%clk 0:00:08]}  Rc7 {[%clk 0:00:02]} 46. Kxe4 {[%clk 0:00:08]}  Rc4+ {[%clk 0:00:03]} 47. Kf3 {[%clk 0:00:08]}  Ra4 {[%clk 0:00:03]} 48. Rd7+ {[%clk 0:00:08]}  Kf6 {[%clk 0:00:03]} 49. Rd6+ {[%clk 0:00:08]}  Ke5 {[%clk 0:00:04]} 50. Re6+ {[%clk 0:00:08]}  Kd5 {[%clk 0:00:04]} 51. Re7 {[%clk 0:00:09]}  Rxa3+ {[%clk 0:00:04]} 52. Kf4 {[%clk 0:00:09]}  b5 {[%clk 0:00:04]} 53. Rxg7 {[%clk 0:00:09]}  Ra4+ {[%clk 0:00:05]} 54. Kf3 {[%clk 0:00:09]}  Ra3+ {[%clk 0:00:05]} 55. Kf4 {[%clk 0:00:09]}  Ra4+ {[%clk 0:00:05]} 56. Kf3 {[%clk 0:00:09]}  Ra3+ {[%clk 0:00:06]} 57. Kf2 {[%clk 0:00:10]}  Ke5 {[%clk 0:00:06]} 58. Re7+ {[%clk 0:00:07]}  Kf4 {[%clk 0:00:06]} 59. f6 {[%clk 0:00:08]}  Kxg4 {[%clk 0:00:07]} 60. Re5 {[%clk 0:00:07]}  Rf3+ {[%clk 0:00:06]} 61. Kg2 {[%clk 0:00:07]}  Rxf6 {[%clk 0:00:05]} 62. Rxb5 {[%clk 0:00:08]}  Kxh4 {[%clk 0:00:06]} 63. Ra5 {[%clk 0:00:08]}  a6 {[%clk 0:00:06]} 64. Ra4+ {[%clk 0:00:09]}  Kg5 {[%clk 0:00:06]} 65. Kg3 {[%clk 0:00:10]}  h5 {[%clk 0:00:04]} 66. Ra5+ {[%clk 0:00:10]}  Kg6 {[%clk 0:00:04]} 67. Kh4 {[%clk 0:00:11]}  Rb6 {[%clk 0:00:04]} 68. Rg5+ {[%clk 0:00:10]}  Kf6 {[%clk 0:00:05]} 69. Rxh5 {[%clk 0:00:10]}  Ke7 {[%clk 0:00:05]} 70. Kg4 {[%clk 0:00:10]}  Kd6 {[%clk 0:00:05]} 71. Kf3 {[%clk 0:00:10]}  Kc6 {[%clk 0:00:03]} 72. Rh6+ {[%clk 0:00:10]}  Kb5 {[%clk 0:00:04]} 73. Rxb6+ {[%clk 0:00:11]}  Kxb6 {[%clk 0:00:04]} 74. Ke3 {[%clk 0:00:12]}  Kb5 {[%clk 0:00:05]} 75. Kd2 {[%clk 0:00:12]}  Kb4 {[%clk 0:00:06]} 76. Kc1 {[%clk 0:00:13]}  Kb3 {[%clk 0:00:07]} 77. Kb1 {[%clk 0:00:14]}  a5 {[%clk 0:00:07]} 78. Ka1 {[%clk 0:00:15]}  a4 {[%clk 0:00:08]} 79. Kb1 {[%clk 0:00:15]}  a3 {[%clk 0:00:09]} 80. Ka1 {[%clk 0:00:16]}  a2 {[%clk 0:00:10]} 1/2-1/2


[Site "https://www.chess.com"]

[Event "Titled Tuesday Blitz May 24 Early 2022"]
[White "Jian, Alex"]
[Black "Kejzar, Petra"]
[WhiteFideId "30901022"]
[BlackFideId "14610213"]
[WhiteElo "2111"]
[BlackElo "2004"]
[Result "1-0"]
[Round "11"]
[TimeControl "180+1"]
[Date "2022.05.25"]
[WhiteClock "0:00:07"]
[BlackClock "0:00:56"]

1. Nf3 {[%clk 0:03:00]}  Nf6 {[%clk 0:02:59]} 2. b3 {[%clk 0:03:00]}  d6 {[%clk 0:02:55]} 3. d4 {[%clk 0:03:00]}  e5 {[%clk 0:02:55]} 4. dxe5 {[%clk 0:03:00]}  dxe5 {[%clk 0:02:56]} 5. Qxd8+ {[%clk 0:02:59]}  Kxd8 {[%clk 0:02:55]} 6. Nxe5 {[%clk 0:03:00]}  Be6 {[%clk 0:02:55]} 7. Bb2 {[%clk 0:03:00]}  Nbd7 {[%clk 0:02:53]} 8. Nxd7 {[%clk 0:02:59]}  Kxd7 {[%clk 0:02:53]} 9. e3 {[%clk 0:02:57]}  Be7 {[%clk 0:02:52]} 10. Nd2 {[%clk 0:02:57]}  c6 {[%clk 0:02:53]} 11. Bc4 {[%clk 0:02:57]}  b5 {[%clk 0:02:49]} 12. Bxe6+ {[%clk 0:02:55]}  Kxe6 {[%clk 0:02:50]} 13. Nf3 {[%clk 0:02:56]}  c5 {[%clk 0:02:48]} 14. Ng5+ {[%clk 0:02:55]}  Kd7 {[%clk 0:02:45]} 15. Nxf7 {[%clk 0:02:55]}  Rhf8 {[%clk 0:02:45]} 16. Ne5+ {[%clk 0:02:54]}  Kc7 {[%clk 0:02:45]} 17. Rd1 {[%clk 0:02:51]}  a5 {[%clk 0:02:38]} 18. O-O {[%clk 0:02:43]}  a4 {[%clk 0:02:38]} 19. Nd3 {[%clk 0:02:13]}  axb3 {[%clk 0:02:32]} 20. axb3 {[%clk 0:02:14]}  c4 {[%clk 0:02:30]} 21. Nf4 {[%clk 0:02:10]}  Ra2 {[%clk 0:02:26]} 22. Ne6+ {[%clk 0:02:07]}  Kb7 {[%clk 0:02:23]} 23. Nxf8 {[%clk 0:01:45]}  Rxb2 {[%clk 0:02:21]} 24. Nd7 {[%clk 0:01:39]}  Rxc2 {[%clk 0:02:20]} 25. bxc4 {[%clk 0:01:35]}  Rxc4 {[%clk 0:02:12]} 26. Nxf6 {[%clk 0:01:34]}  Bxf6 {[%clk 0:02:12]} 27. Rb1 {[%clk 0:01:31]}  Kc6 {[%clk 0:02:11]} 28. Rfc1 {[%clk 0:01:30]}  Kc5 {[%clk 0:02:10]} 29. Kf1 {[%clk 0:01:29]}  b4 {[%clk 0:02:07]} 30. Ke2 {[%clk 0:01:27]}  Bc3 {[%clk 0:02:04]} 31. Kd3 {[%clk 0:01:19]}  Rg4 {[%clk 0:02:04]} 32. g3 {[%clk 0:01:12]}  Rg6 {[%clk 0:01:52]} 33. Rxc3+ {[%clk 0:01:12]}  bxc3 {[%clk 0:01:53]} 34. Kxc3 {[%clk 0:01:12]}  Rh6 {[%clk 0:01:51]} 35. h4 {[%clk 0:01:12]}  Rf6 {[%clk 0:01:51]} 36. Rb2 {[%clk 0:01:12]}  Kd5 {[%clk 0:01:49]} 37. Kd3 {[%clk 0:01:10]}  Ra6 {[%clk 0:01:49]} 38. e4+ {[%clk 0:01:09]}  Ke5 {[%clk 0:01:48]} 39. f4+ {[%clk 0:01:09]}  Ke6 {[%clk 0:01:47]} 40. Rb3 {[%clk 0:01:08]}  Ra1 {[%clk 0:01:45]} 41. Ke3 {[%clk 0:01:08]}  Rg1 {[%clk 0:01:43]} 42. Kf3 {[%clk 0:01:08]}  Rd1 {[%clk 0:01:43]} 43. Rb6+ {[%clk 0:01:07]}  Ke7 {[%clk 0:01:42]} 44. e5 {[%clk 0:01:07]}  Re1 {[%clk 0:01:40]} 45. Kg4 {[%clk 0:01:05]}  Re3 {[%clk 0:01:37]} 46. f5 {[%clk 0:01:02]}  h5+ {[%clk 0:01:36]} 47. Kf4 {[%clk 0:01:00]}  Re1 {[%clk 0:01:35]} 48. Rb7+ {[%clk 0:00:59]}  Kf8 {[%clk 0:01:34]} 49. e6 {[%clk 0:00:55]}  Re2 {[%clk 0:01:28]} 50. Kg5 {[%clk 0:00:47]}  Re3 {[%clk 0:01:27]} 51. g4 {[%clk 0:00:39]}  hxg4 {[%clk 0:01:24]} 52. Kxg4 {[%clk 0:00:39]}  Re4+ {[%clk 0:01:24]} 53. Kg5 {[%clk 0:00:39]}  Re1 {[%clk 0:01:21]} 54. Rf7+ {[%clk 0:00:30]}  Kg8 {[%clk 0:01:19]} 55. f6 {[%clk 0:00:30]}  Rxe6 {[%clk 0:01:06]} 56. Rxg7+ {[%clk 0:00:27]}  Kh8 {[%clk 0:01:07]} 57. Rg6 {[%clk 0:00:14]}  Re1 {[%clk 0:01:04]} 58. f7 {[%clk 0:00:09]}  Rg1+ {[%clk 0:01:02]} 59. Kf5 {[%clk 0:00:09]}  Rf1+ {[%clk 0:01:01]} 60. Ke6 {[%clk 0:00:09]}  Re1+ {[%clk 0:01:00]} 61. Kd7 {[%clk 0:00:08]}  Rd1+ {[%clk 0:00:56]} 62. Ke7 {[%clk 0:00:07]}  Re1+ {[%clk 0:00:56]} 63. Re6 {[%clk 0:00:07]} 1-0


[Site "https://www.chess.com"]

[Event "Titled Tuesday Blitz May 24 Early 2022"]
[White "Kamsky, Gata"]
[Black "Oparin, Grigoriy"]
[WhiteFideId "2000024"]
[BlackFideId "24125890"]
[WhiteElo "2645"]
[BlackElo "2665"]
[Result "1-0"]
[Round "11"]
[TimeControl "180+1"]
[Date "2022.05.24"]
[WhiteClock "0:00:03"]
[BlackClock "0:00:04"]

1. d4 {[%clk 0:03:00]}  Nf6 {[%clk 0:02:59]} 2. Nf3 {[%clk 0:03:00]}  d5 {[%clk 0:02:59]} 3. Bf4 {[%clk 0:02:58]}  e6 {[%clk 0:02:59]} 4. e3 {[%clk 0:02:58]}  c5 {[%clk 0:02:59]} 5. c3 {[%clk 0:02:57]}  Nc6 {[%clk 0:02:59]} 6. Nbd2 {[%clk 0:02:57]}  cxd4 {[%clk 0:03:00]} 7. exd4 {[%clk 0:02:57]}  Nh5 {[%clk 0:03:00]} 8. Be3 {[%clk 0:02:54]}  Bd6 {[%clk 0:02:59]} 9. Ne5 {[%clk 0:02:53]}  g6 {[%clk 0:02:59]} 10. f4 {[%clk 0:02:51]}  O-O {[%clk 0:02:56]} 11. Be2 {[%clk 0:02:49]}  Ng7 {[%clk 0:02:56]} 12. O-O {[%clk 0:02:47]}  f6 {[%clk 0:02:56]} 13. Nd3 {[%clk 0:02:46]}  b6 {[%clk 0:02:53]} 14. g3 {[%clk 0:02:39]}  Ba6 {[%clk 0:02:52]} 15. Bf2 {[%clk 0:02:32]}  Bc7 {[%clk 0:02:46]} 16. Qa4 {[%clk 0:02:27]}  Bb7 {[%clk 0:02:46]} 17. Bf3 {[%clk 0:02:21]}  Nf5 {[%clk 0:02:44]} 18. Rfe1 {[%clk 0:02:19]}  Qd7 {[%clk 0:02:37]} 19. Bg2 {[%clk 0:02:00]}  Rad8 {[%clk 0:02:35]} 20. Rac1 {[%clk 0:01:54]}  Bb8 {[%clk 0:02:25]} 21. Qd1 {[%clk 0:01:44]}  Ba6 {[%clk 0:02:18]} 22. Nf3 {[%clk 0:01:41]}  Nd6 {[%clk 0:02:17]} 23. b3 {[%clk 0:01:36]}  Ne4 {[%clk 0:02:11]} 24. Be3 {[%clk 0:01:36]}  Ne7 {[%clk 0:01:55]} 25. Nf2 {[%clk 0:01:22]}  Nf5 {[%clk 0:01:30]} 26. Bd2 {[%clk 0:01:18]}  Nxf2 {[%clk 0:01:28]} 27. Kxf2 {[%clk 0:01:17]}  Nd6 {[%clk 0:01:29]} 28. Kg1 {[%clk 0:01:17]}  Ne4 {[%clk 0:01:29]} 29. c4 {[%clk 0:01:12]}  Rc8 {[%clk 0:01:09]} 30. Bb4 {[%clk 0:01:10]}  Rfd8 {[%clk 0:01:09]} 31. cxd5 {[%clk 0:01:05]}  exd5 {[%clk 0:01:08]} 32. Nd2 {[%clk 0:01:02]}  Bd3 {[%clk 0:00:55]} 33. Rxc8 {[%clk 0:00:52]}  Rxc8 {[%clk 0:00:55]} 34. a4 {[%clk 0:00:40]}  a5 {[%clk 0:00:52]} 35. Ba3 {[%clk 0:00:37]}  Nc3 {[%clk 0:00:45]} 36. Qa1 {[%clk 0:00:31]}  Bf5 {[%clk 0:00:12]} 37. Re3 {[%clk 0:00:26]}  Qc6 {[%clk 0:00:08]} 38. h3 {[%clk 0:00:25]}  h5 {[%clk 0:00:08]} 39. Kh2 {[%clk 0:00:24]}  Kg7 {[%clk 0:00:03]} 40. Bf3 {[%clk 0:00:23]}  Kg8 {[%clk 0:00:03]} 41. h4 {[%clk 0:00:20]}  Kg7 {[%clk 0:00:02]} 42. Qe1 {[%clk 0:00:20]}  Kg8 {[%clk 0:00:02]} 43. Re7 {[%clk 0:00:19]}  Ne4 {[%clk 0:00:02]} 44. Nxe4 {[%clk 0:00:18]}  dxe4 {[%clk 0:00:03]} 45. Bxe4 {[%clk 0:00:18]}  Bxe4 {[%clk 0:00:03]} 46. Qxe4 {[%clk 0:00:18]}  Qxe4 {[%clk 0:00:03]} 47. Rxe4 {[%clk 0:00:19]}  Rd8 {[%clk 0:00:02]} 48. d5 {[%clk 0:00:17]}  Bd6 {[%clk 0:00:02]} 49. Bb2 {[%clk 0:00:16]}  Bf8 {[%clk 0:00:02]} 50. Rd4 {[%clk 0:00:15]}  Kf7 {[%clk 0:00:02]} 51. Kg2 {[%clk 0:00:14]}  Bc5 {[%clk 0:00:02]} 52. Rd3 {[%clk 0:00:14]}  Rd7 {[%clk 0:00:03]} 53. Kf3 {[%clk 0:00:14]}  f5 {[%clk 0:00:04]} 54. Be5 {[%clk 0:00:13]}  Bd6 {[%clk 0:00:04]} 55. Ke3 {[%clk 0:00:12]}  Bc5+ {[%clk 0:00:05]} 56. Kf3 {[%clk 0:00:13]}  Bd6 {[%clk 0:00:06]} 57. Bd4 {[%clk 0:00:12]}  Bc7 {[%clk 0:00:05]} 58. Be3 {[%clk 0:00:12]}  Ke7 {[%clk 0:00:05]} 59. Ke2 {[%clk 0:00:13]}  Kd6 {[%clk 0:00:06]} 60. Kd2 {[%clk 0:00:13]}  Re7 {[%clk 0:00:06]} 61. Kc2 {[%clk 0:00:13]}  Kd7 {[%clk 0:00:07]} 62. Kc3 {[%clk 0:00:12]}  Re4 {[%clk 0:00:07]} 63. Kc2 {[%clk 0:00:12]}  Re7 {[%clk 0:00:08]} 64. Kd2 {[%clk 0:00:11]}  Re4 {[%clk 0:00:08]} 65. Ke2 {[%clk 0:00:11]}  Bd8 {[%clk 0:00:09]} 66. Kf3 {[%clk 0:00:11]}  Bc7 {[%clk 0:00:09]} 67. Bd4 {[%clk 0:00:11]}  Re1 {[%clk 0:00:09]} 68. Re3 {[%clk 0:00:11]}  Rb1 {[%clk 0:00:06]} 69. Be5 {[%clk 0:00:09]}  Bd8 {[%clk 0:00:06]} 70. Rd3 {[%clk 0:00:08]}  Be7 {[%clk 0:00:06]} 71. d6 {[%clk 0:00:09]}  Bd8 {[%clk 0:00:06]} 72. Ke3 {[%clk 0:00:09]}  Rg1 {[%clk 0:00:05]} 73. Kd4 {[%clk 0:00:09]}  Rc1 {[%clk 0:00:05]} 74. Kd5 {[%clk 0:00:09]}  Rc5+ {[%clk 0:00:06]} 75. Kd4 {[%clk 0:00:09]}  Rc1 {[%clk 0:00:07]} 76. Rc3 {[%clk 0:00:09]}  Rd1+ {[%clk 0:00:06]} 77. Kc4 {[%clk 0:00:09]}  Kc6 {[%clk 0:00:06]} 78. b4 {[%clk 0:00:09]}  axb4 {[%clk 0:00:06]} 79. Kxb4+ {[%clk 0:00:09]}  Kd7 {[%clk 0:00:07]} 80. Kb5 {[%clk 0:00:10]}  Rb1+ {[%clk 0:00:07]} 81. Ka6 {[%clk 0:00:10]}  Rb4 {[%clk 0:00:07]} 82. Ra3 {[%clk 0:00:09]}  Rb1 {[%clk 0:00:06]} 83. Kb7 {[%clk 0:00:09]}  Rb4 {[%clk 0:00:06]} 84. Ra2 {[%clk 0:00:09]}  Rb1 {[%clk 0:00:07]} 85. Rc2 {[%clk 0:00:09]}  Rb4 {[%clk 0:00:07]} 86. Rc6 {[%clk 0:00:07]}  Rxa4 {[%clk 0:00:06]} 87. Rc8 {[%clk 0:00:06]}  Rb4 {[%clk 0:00:06]} 88. Rc6 {[%clk 0:00:05]}  Rb3 {[%clk 0:00:06]} 89. Rc8 {[%clk 0:00:05]}  Ra3 {[%clk 0:00:06]} 90. Rc6 {[%clk 0:00:05]}  b5 {[%clk 0:00:06]} 91. Rc5 {[%clk 0:00:04]}  Ra5 {[%clk 0:00:06]} 92. Bc3 {[%clk 0:00:03]}  b4 {[%clk 0:00:06]} 93. Bxb4 {[%clk 0:00:03]}  Ra3 {[%clk 0:00:04]} 94. Bxa3 {[%clk 0:00:03]} 1-0


[Site "https://www.chess.com"]